bitfinex-derivatives/quotes_ETHF0:USTF0_20230402
["timestamp","ask_amount","ask_price","bid_price","bid_amount"]
[1680458862039,0.58051109,1801.9,1801.8,0.832]
[1680458865447,0.58051109,1801.9,1801.8,1.37959279]
[1680458866651,0.58051109,1801.9,1801.8,1.50835667]
[1680458872156,0.58051109,1801.9,1801.8,1.50535667]
[1680458875152,0.58051109,1801.9,1801.8,3.16435667]
[1680458877160,0.58051109,1801.9,1801.8,2.33535667]
[1680458880855,0.58051109,1801.9,1801.8,0.67635667]
[1680458881057,0.8707646,1801.9,1801.8,0.67635667]
[1680458881253,1.8707646,1801.9,1801.8,0.67635667]
[1680458890760,0.58114511,1801.9,1801.8,2.34035667]
[1680458890957,0.58114511,1802.0,1801.8,6.12719689]
[1680458891156,0.58114511,1802.0,1801.9,0.829]
[1680458891355,1.45190971,1802.0,1801.9,0.95402721]
[1680458891556,0.8707646,1802.0,1801.9,0.95402721]
[1680458894272,2.7027646,1802.0,1801.9,0.12502721]
[1680458894467,2.99301946,1802.0,1801.9,0.12502721]
[1680458894668,2.99301946,1802.0,1801.8,0.54759279]
[1680458894869,1.0,1801.8,1801.7,2.28255342]
[1680458895073,1.58130501,1801.8,1801.7,2.28255342]
[1680458895270,1.0,1801.8,1801.7,2.28255342]
[1680458895476,3.285262,1801.8,1801.7,0.5558074]
[1680458895676,3.34262573,1801.8,1801.6,0.57904022]
[1680458895873,0.58133783,1801.7,1801.6,0.57904022]
[1680458896075,3.78913783,1801.7,1801.6,0.57904022]
[1680458896667,3.92405373,1801.7,1801.6,0.57904022]
[1680458900177,3.92405373,1801.7,1801.6,1.4477446]
[1680458900383,1.58869861,1801.7,1801.6,0.86870438]
[1680458900983,1.00687289,1801.7,1801.6,0.86870438]
[1680458903488,1.00687289,1801.7,1801.6,1.70070438]
[1680458906782,0.71693956,1801.7,1801.6,1.99188064]
[1680458907191,0.71693956,1801.7,1801.6,5.19968064]
[1680458907383,0.71693956,1801.7,1801.6,1.99188064]
[1680458909586,0.71693956,1801.7,1801.6,2.82388064]
[1680458909792,0.71693956,1801.7,1801.6,6.03168064]
[1680458909980,1.45398065,1801.8,1801.6,6.09051535]
[1680458910292,1.45398065,1801.8,1801.7,2.53271611]
[1680458910588,0.58202366,1801.8,1801.7,1.664]
[1680458910790,1.45398065,1801.8,1801.7,2.53268126]
[1680458911190,0.58202366,1801.8,1801.7,2.53268126]
[1680458911386,0.58202366,1801.8,1801.7,1.664]
[1680458911592,0.58202366,1801.8,1801.7,1.72259173]
[1680458912792,1.45398065,1801.8,1801.7,2.59124098]
[1680458912987,0.58202366,1801.8,1801.7,2.59124098]
[1680458914994,0.58202366,1801.8,1801.7,3.15300496]
[1680458915898,0.58202366,1801.8,1801.7,3.44423635]
[1680458921997,0.58202366,1801.8,1801.7,2.61223635]
[1680458922800,1.45398065,1801.9,1801.7,2.61223635]
[1680458922990,0.87195699,1801.9,1801.8,1.69947569]
[1680458925405,0.94924878,1801.9,1801.8,1.69947569]
[1680458925607,1.53103397,1801.9,1801.8,1.69947569]
[1680458926907,0.07729179,1801.9,1801.8,0.57894261]
[1680458927198,5.57913779,1801.9,1801.8,0.57256897]
[1680458927904,4.57913779,1801.9,1801.8,0.57256897]
[1680458930002,4.57913779,1801.9,1801.7,1.43023967]
[1680458930202,0.8727186,1801.8,1801.7,1.43023967]
[1680458930407,1.8727186,1801.8,1801.7,3.05626693]
[1680458930708,1.8727186,1801.8,1801.7,0.86847569]
[1680458930913,0.8727186,1801.8,1801.7,0.86847569]
[1680458932007,0.8727186,1801.8,1801.7,1.70047569]
[1680458932408,1.8727186,1801.8,1801.7,1.70047569]
[1680458932606,0.8727186,1801.8,1801.7,1.70047569]
[1680458934199,1.8727186,1801.8,1801.7,2.26800099]
[1680458935509,0.8727186,1801.8,1801.7,2.26800099]
[1680458940910,0.8727186,1801.8,1801.7,1.43600099]
[1680458941107,1.53183447,1801.9,1801.7,3.38540594]
[1680458941315,0.65911587,1801.9,1801.8,4.90808641]
[1680458941719,0.63032509,1801.9,1801.8,4.90808641]
[1680458942118,1.50304369,1801.9,1801.8,4.90808641]
[1680458943220,0.63032509,1801.9,1801.8,4.90808641]
[1680458943612,0.63032509,1801.9,1801.8,4.07608641]
[1680458943817,1.74921961,1801.9,1801.7,1.43581171]
[1680458944017,2.454542,1801.8,1801.7,1.43581171]
[1680458944515,1.8727186,1801.8,1801.7,1.43581171]
[1680458948420,1.8727186,1801.8,1801.7,3.10246654]
[1680458948628,1.8727186,1801.8,1801.7,0.86828641]
[1680458951829,0.8727186,1801.8,1801.7,0.86828641]
[1680458953532,0.8727186,1801.8,1801.7,1.42855515]
[1680458956736,1.05463627,1801.8,1801.7,1.42855515]
[1680458963249,1.05463627,1801.8,1801.7,2.53155515]
[1680458963650,0.58199164,1801.8,1801.7,2.82314938]
[1680458965047,0.58199164,1801.8,1801.7,1.72014938]
[1680458965242,2.56371024,1801.8,1801.7,1.42894939]
[1680458965449,1.24076067,1801.8,1801.6,0.86868065]
[1680458965645,5.47081946,1801.7,1801.5,0.86868065]
[1680458965849,1.97914701,1801.6,1801.5,0.86868065]
[1680458966146,2.106,1801.6,1801.5,0.86868065]
[1680458966349,3.26701946,1801.6,1801.5,0.86868065]
[1680458966652,3.26701946,1801.6,1801.4,0.86868065]
[1680458966847,4.08102574,1801.5,1801.4,0.86868065]
[1680458967245,3.78970065,1801.5,1801.4,0.86868065]
[1680458967655,0.58190065,1801.5,1801.4,0.86868065]
[1680458971657,0.92718676,1801.5,1801.4,0.86868065]
[1680458972159,4.13498676,1801.5,1801.3,1.97068065]
[1680458972459,5.0082125,1801.5,1801.3,1.97068065]
[1680458973164,4.13498676,1801.5,1801.3,1.97068065]
[1680458974460,0.92718676,1801.5,1801.3,1.97068065]
[1680458975862,4.13498676,1801.5,1801.3,1.97068065]
[1680458980161,4.13498676,1801.5,1801.3,1.97868065]
[1680458981162,4.13498676,1801.5,1801.3,1.11]
[1680458982059,4.13498676,1801.5,1801.2,3.05802374]
[1680458982266,5.0082125,1801.5,1801.2,3.05802374]
[1680458982564,1.58190065,1801.4,1801.2,2.18934309]
[1680458982768,1.58190065,1801.4,1801.1,1.97168065]
[1680458982974,1.58190065,1801.4,1801.1,3.62386165]
[1680458983166,1.58190065,1801.4,1801.1,4.16609884]
[1680458986667,0.34547694,1801.3,1801.1,4.16609884]
[1680458987568,3.55327694,1801.3,1801.1,4.16609884]
[1680458991869,3.5487881,1801.3,1801.1,4.16609884]
[1680458993871,3.5487881,1801.3,1801.1,3.06309884]
[1680458994369,3.5487881,1801.3,1801.1,2.19441819]
[1680458994569,3.5487881,1801.3,1801.0,1.97168065]
[1680458994966,0.3409881,1801.3,1801.0,1.97168065]
[1680458995173,0.3409881,1801.3,1801.1,0.86868065]
[1680459001680,0.3409881,1801.3,1801.2,1.97468065]
[1680459001881,0.3409881,1801.3,1801.2,2.97468065]
[1680459002279,0.3409881,1801.3,1801.2,1.97468065]
[1680459006077,0.58190065,1801.5,1801.2,1.97468065]
[1680459006278,0.34123049,1801.4,1801.3,1.106]
[1680459009274,0.92313114,1801.4,1801.3,1.106]
[1680459010079,0.92313114,1801.4,1801.3,1.97468065]
[1680459010887,0.34123049,1801.4,1801.3,1.97468065]
[1680459011287,0.92313114,1801.4,1801.3,4.3138]
[1680459011680,0.92313114,1801.4,1801.3,5.18270614]
[1680459011984,0.92313114,1801.4,1801.3,4.3138]
[1680459012187,0.92313114,1801.4,1801.3,4.0328]
[1680459015282,0.92313114,1801.4,1801.3,5.19268064]
[1680459015687,0.92313114,1801.4,1801.3,0.825]
[1680459017386,0.92313114,1801.4,1801.3,1.98488064]
[1680459017891,0.92313114,1801.4,1801.3,5.19268064]
[1680459018594,0.92313114,1801.4,1801.3,4.0328]
[1680459018990,0.92313114,1801.4,1801.3,5.19268064]
[1680459019290,0.92313114,1801.4,1801.3,0.825]
[1680459019591,1.79656053,1801.4,1801.3,1.69415298]
[1680459019796,0.92333479,1801.4,1801.3,0.825]
[1680459020197,1.79656749,1801.4,1801.3,1.69418637]
[1680459020507,0.92334175,1801.4,1801.3,0.825]
[1680459021508,0.92334175,1801.4,1801.3,1.98488064]
[1680459021698,0.92334175,1801.4,1801.3,5.19268064]
[1680459022005,0.92334175,1801.4,1801.3,4.0328]
[1680459022307,1.79656749,1801.4,1801.3,0.825]
[1680459023100,0.92334175,1801.4,1801.3,0.825]
[1680459023404,1.79656749,1801.4,1801.3,0.825]
[1680459023606,0.92334175,1801.4,1801.3,1.98488064]
[1680459028813,0.92334175,1801.4,1801.3,1.15988064]
[1680459029009,2.21445623,1801.4,1801.3,0.86913774]
[1680459029205,0.34123049,1801.4,1801.2,1.99188064]
[1680459029506,0.92336382,1801.4,1801.2,1.99188064]
[1680459031009,0.92336382,1801.4,1801.3,1.15988064]
[1680459032112,0.92336382,1801.4,1801.3,1.98988064]
[1680459039014,1.79658956,1801.4,1801.3,1.98988064]
[1680459043220,1.21445623,1801.4,1801.3,1.98988064]
[1680459043915,0.92363414,1801.4,1801.3,1.98988064]
[1680459045224,1.21445623,1801.4,1801.3,1.98988064]
[1680459056233,0.87381311,1801.6,1801.4,1.0]
[1680459056428,0.87381311,1801.6,1801.5,6.01880882]
[1680459059128,0.87381311,1801.7,1801.5,6.01880882]
[1680459059434,0.87381311,1801.7,1801.6,1.69587862]
[1680459063935,0.94530605,1801.7,1801.6,1.69587862]
[1680459065334,0.07149294,1801.7,1801.6,0.57915663]
[1680459065733,0.94452276,1801.7,1801.6,0.57915663]
[1680459065936,0.07149294,1801.7,1801.6,0.57915663]
[1680459067536,0.94443418,1801.7,1801.6,0.57915663]
[1680459092048,0.94443418,1801.7,1801.6,1.41115663]
[1680459093654,0.07149294,1801.7,1801.6,1.41115663]
[1680459095661,1.2325124,1801.7,1801.6,1.41115663]
[1680459098355,1.2325124,1801.7,1801.6,1.70087862]
[1680459099967,1.2325124,1801.7,1801.6,2.28027561]
[1680459100165,1.2325124,1801.7,1801.6,1.70087862]
[1680459105469,1.2325124,1801.7,1801.6,0.832]
[1680459107965,0.94515339,1801.7,1801.6,1.99100882]
[1680459110071,0.94515339,1801.7,1801.6,0.832]
[1680459110371,0.94515339,1801.7,1801.6,1.99100882]
[1680459110669,0.94515339,1801.7,1801.6,0.832]
[1680459110868,0.94515339,1801.7,1801.6,1.99100882]
[1680459111269,0.94515339,1801.7,1801.6,0.832]
[1680459112071,0.94515339,1801.7,1801.6,0.831]
[1680459114475,0.94515339,1801.7,1801.6,1.99000882]
[1680459120684,0.94515339,1801.7,1801.6,1.69992713]
[1680459122080,0.94515339,1801.7,1801.6,1.69892713]
[1680459123384,0.93871686,1801.7,1801.6,1.69892713]
[1680459131587,0.93871686,1801.7,1801.6,1.70092713]
[1680459131792,0.93871686,1801.7,1801.6,0.832]
[1680459132085,0.93871686,1801.7,1801.6,1.70091905]
[1680459144503,0.93871686,1801.7,1801.6,0.832]
[1680459144796,0.93871686,1801.7,1801.6,1.70096042]
[1680459144998,0.93871686,1801.7,1801.6,0.832]
[1680459145200,0.93871686,1801.7,1801.6,1.70096295]
[1680459145502,0.93871686,1801.7,1801.6,1.99100882]
[1680459146899,0.93871686,1801.7,1801.6,1.70094126]
[1680459147402,0.93871686,1801.7,1801.6,0.832]
[1680459148403,0.06505641,1801.7,1801.6,0.832]
[1680459149100,0.06505641,1801.7,1801.6,1.70102262]
[1680459149599,1.22607587,1801.7,1801.6,1.70102262]
[1680459150008,1.22607587,1801.7,1801.6,0.86902262]
[1680459150304,2.34175141,1801.7,1801.6,0.86902262]
[1680459150505,1.34175141,1801.7,1801.6,1.44841786]
[1680459154306,1.34175141,1801.7,1801.6,0.57939524]
[1680459161813,0.18073195,1801.7,1801.5,3.1249884]
[1680459162013,4.37217498,1801.6,1801.5,3.1249884]
[1680459162513,4.55339454,1801.6,1801.5,2.25596578]
[1680459169413,4.55339454,1801.6,1801.5,1.67657054]
[1680459169715,4.55339454,1801.6,1801.4,1.44841786]
[1680459169917,0.8728563,1801.5,1801.4,1.44841786]
[1680459170413,1.8728563,1801.5,1801.4,1.44841786]
[1680459170618,0.8728563,1801.5,1801.4,1.44841786]
[1680459171417,0.8728563,1801.5,1801.4,0.57939524]
[1680459172023,0.8728563,1801.5,1801.4,1.40839524]
[1680459174821,1.05422909,1801.5,1801.4,1.40839524]
[1680459179626,0.76308174,1801.5,1801.4,1.40839524]
[1680459182926,1.63593804,1801.5,1801.4,1.40839524]
[1680459183129,0.76308174,1801.5,1801.4,1.40839524]
[1680459183933,1.63593804,1801.5,1801.4,1.40839524]
[1680459184129,0.76308174,1801.5,1801.4,1.40839524]
[1680459184629,1.63593804,1801.5,1801.4,1.40839524]
[1680459188530,1.05422909,1801.5,1801.4,2.27741786]
[1680459192540,1.05422909,1801.5,1801.4,1.69802262]
[1680459198056,1.05022334,1801.5,1801.4,1.69802262]
[1680459204462,0.17736704,1801.5,1801.4,1.69802262]
[1680459206365,1.34174202,1801.5,1801.4,0.829]
[1680459210259,1.34174202,1801.5,1801.4,1.69847936]
[1680459210454,2.34174202,1801.5,1801.4,1.69847936]
[1680459210660,1.34174202,1801.5,1801.4,1.69847936]
[1680459212071,1.34174202,1801.5,1801.4,1.69547936]
[1680459214670,1.42163249,1801.5,1801.4,1.69547936]
[1680459222078,1.42163249,1801.5,1801.4,0.86947936]
[1680459232482,1.42163249,1801.5,1801.4,1.44896257]
[1680459232674,1.42163249,1801.5,1801.4,1.44897008]
[1680459232877,1.42163249,1801.5,1801.4,0.86947936]
[1680459236088,1.42163249,1801.5,1801.4,1.70147936]
[1680459236288,0.25725751,1801.5,1801.4,1.70147936]
[1680459236486,1.42163249,1801.5,1801.4,1.70147936]
[1680459237389,0.25725751,1801.5,1801.4,0.832]
[1680459237585,1.13085856,1801.5,1801.4,0.832]
[1680459237990,0.25725751,1801.5,1801.4,1.7011465]
[1680459238187,1.42163249,1801.5,1801.4,1.7011465]
[1680459245483,0.25725751,1801.5,1801.4,1.7011465]
[1680459249195,1.42163249,1801.5,1801.4,1.7011465]
[1680459249501,4.62943249,1801.5,1801.4,0.8691465]
[1680459249802,1.42163249,1801.5,1801.4,0.8691465]
[1680459250702,0.25725751,1801.5,1801.4,0.8691465]
[1680459250898,1.13091157,1801.5,1801.4,0.8691465]
[1680459252502,1.13091157,1801.5,1801.3,5.19880882]
[1680459252807,0.58242519,1801.4,1801.3,5.19880882]
[1680459253008,0.83994759,1801.4,1801.3,5.19880882]
[1680459254004,0.83994759,1801.4,1801.3,6.02580882]
[1680459254905,0.83994759,1801.4,1801.3,6.31556102]
[1680459255210,0.83994759,1801.4,1801.3,20.48538652]
[1680459255507,0.2575224,1801.4,1801.3,19.48538652]
[1680459257105,0.2575224,1801.4,1801.3,6.31556102]
[1680459258716,0.2575224,1801.4,1801.3,4.8668]
[1680459259914,0.2575224,1801.4,1801.3,6.31556102]
[1680459261025,0.2575224,1801.4,1801.3,4.8668]
[1680459264423,0.83994759,1801.4,1801.3,6.02509562]
[1680459273327,0.2575224,1801.4,1801.3,6.02509562]
[1680459274125,0.83994759,1801.4,1801.3,6.02506619]
[1680459276926,0.83994759,1801.4,1801.3,4.8668]
[1680459278028,0.83994759,1801.4,1801.3,6.02515397]
[1680459278223,0.83994759,1801.4,1801.3,4.8668]
[1680459278424,0.2575224,1801.4,1801.3,6.31556102]
[1680459278726,0.83994759,1801.4,1801.3,6.31556102]
[1680459283035,0.83994759,1801.4,1801.3,4.8668]
[1680459283230,0.83994759,1801.4,1801.3,6.31556102]
[1680459284631,0.2575224,1801.4,1801.3,6.31556102]
[1680459285031,0.2575224,1801.4,1801.3,19.48473175]
[1680459285728,0.83994759,1801.4,1801.3,6.31556102]
[1680459286135,0.83994759,1801.4,1801.3,19.48475841]
[1680459286848,0.83994759,1801.4,1801.3,19.4846487]
[1680459287040,0.83994759,1801.4,1801.3,6.31556102]
[1680459287441,0.83994759,1801.4,1801.3,19.48463176]
[1680459288131,0.83994759,1801.4,1801.3,6.31556102]
[1680459288331,0.83994759,1801.4,1801.3,19.48476338]
[1680459289133,0.2575224,1801.4,1801.3,19.48476338]
[1680459289338,0.83994759,1801.4,1801.3,19.48476338]
[1680459298043,0.2575224,1801.4,1801.3,19.48476338]
[1680459298946,0.83994759,1801.4,1801.3,19.48476338]
[1680459302143,0.83994759,1801.4,1801.3,0.832]
[1680459302548,0.83994759,1801.4,1801.3,4.0398]
[1680459303142,1.42189738,1801.4,1801.3,1.70119823]
[1680459303347,0.8400212,1801.4,1801.3,1.99071365]
[1680459304042,0.8400212,1801.4,1801.3,0.832]
[1680459304241,0.8400212,1801.4,1801.3,1.9907104]
[1680459305343,1.7137694,1801.4,1801.3,1.9907104]
[1680459305543,0.8400212,1801.4,1801.3,1.9907104]
[1680459306144,1.7137694,1801.4,1801.3,1.9907104]
[1680459306452,0.8400212,1801.4,1801.3,1.9907104]
[1680459307349,1.1312706,1801.4,1801.3,1.9907104]
[1680459307654,1.1312706,1801.4,1801.3,1.1587104]
[1680459309449,1.1312706,1801.4,1801.2,1.9907104]
[1680459309648,0.58234734,1801.3,1801.2,0.832]
[1680459309955,0.84044938,1801.3,1801.2,1.99058513]
[1680459310145,0.84044938,1801.3,1801.2,0.832]
[1680459310347,0.84044938,1801.3,1801.2,1.99060321]
[1680459316352,4.92199758,1801.3,1801.2,1.70135375]
[1680459316559,4.92199758,1801.3,1801.2,0.832]
[1680459317153,4.92199758,1801.3,1801.2,1.70132648]
[1680459317452,4.92170292,1801.3,1801.2,1.70132648]
[1680459318056,5.2781442,1801.3,1801.1,2.02058396]
[1680459318260,1.196596,1801.3,1801.2,0.57952478]
[1680459318656,2.36097098,1801.3,1801.2,0.57952478]
[1680459319161,5.56877098,1801.3,1801.2,0.57952478]
[1680459319457,5.27713492,1801.3,1801.1,1.44150553]
[1680459319662,0.58182539,1801.2,1801.1,1.44150553]
[1680459319863,0.58182539,1801.2,1801.1,0.57952478]
[1680459320558,1.45456431,1801.2,1801.1,0.57952478]
[1680459321358,0.58182539,1801.2,1801.1,0.57952478]
[1680459325367,0.58182539,1801.2,1801.0,3.04809197]
[1680459328671,0.41565201,1801.1,1801.0,3.04809197]
[1680459328968,0.58182539,1801.2,1801.0,3.04809197]
[1680459332181,0.58182539,1801.2,1801.0,2.21609197]
[1680459333782,0.58182539,1801.2,1801.0,1.63656719]
[1680459333977,0.58182539,1801.2,1800.9,1.41152478]
[1680459334176,0.58182539,1801.2,1800.9,3.08754108]
[1680459334378,1.58182539,1801.2,1800.9,1.41152478]
[1680459334978,1.58182539,1801.2,1801.0,0.57952478]
[1680459335387,1.58182539,1801.2,1800.9,1.41152478]
[1680459335590,2.41082539,1801.2,1800.9,0.57952478]
[1680459336279,3.2078,1801.1,1800.9,0.57952478]
[1680459342484,3.78962539,1801.1,1800.9,0.57952478]
[1680459342688,3.78962539,1801.1,1800.8,3.03577289]
[1680459343685,0.41585105,1801.0,1800.8,3.03577289]
[1680459343894,1.41585105,1801.0,1800.8,3.03577289]
[1680459344887,1.99767644,1801.0,1800.8,3.03577289]
[1680459345391,0.99767644,1801.0,1800.8,3.03577289]
[1680459345588,0.41585105,1801.0,1800.8,3.03577289]
[1680459346590,0.99767644,1801.0,1800.8,3.03577289]
[1680459347179,0.41585105,1801.0,1800.8,3.03577289]
[1680459348289,0.41585105,1801.0,1800.9,0.57952478]
[1680459348486,0.41585105,1801.0,1800.8,3.03577289]
[1680459348682,0.41585105,1801.0,1800.9,0.57952478]
[1680459352090,0.41585105,1801.0,1800.9,1.40652478]
[1680459355784,0.99767644,1801.0,1800.9,1.40652478]
[1680459355984,0.41585105,1801.0,1800.9,1.40652478]
[1680459357491,0.99767644,1801.0,1800.9,1.40652478]
[1680459359293,0.99767644,1801.0,1800.9,0.57952478]
[1680459361489,1.87041536,1801.0,1800.8,1.62824811]
[1680459361685,1.87041536,1801.0,1800.7,1.99060321]
[1680459362495,1.87041536,1801.0,1800.9,0.5796493]
[1680459362496,1.28858997,1801.0,1800.9,0.5796493]
[1680459367896,2.28858997,1801.0,1800.9,0.5796493]
[1680459369197,1.41585105,1801.0,1800.9,0.5796493]
[1680459369393,3.40622603,1801.0,1800.8,0.5796493]
[1680459369703,4.08093531,1800.9,1800.8,0.57987439]
[1680459370007,5.33013484,1800.9,1800.8,0.57987439]
[1680459371004,5.33013484,1800.9,1800.8,0.57987339]
[1680459372203,6.45437451,1800.9,1800.8,0.57987339]
[1680459372401,6.45437451,1800.9,1800.7,0.57987339]
[1680459372708,2.70018309,1800.8,1800.7,0.57987339]
[1680459373710,3.29878103,1800.8,1800.7,0.57987339]
[1680459374505,2.29878103,1800.8,1800.7,0.57987339]
[1680459377503,2.88060308,1800.8,1800.7,0.57987339]
[1680459378407,2.29878103,1800.8,1800.7,0.57987339]
[1680459379009,2.88053429,1800.8,1800.7,0.57987339]
[1680459380603,2.88056384,1800.8,1800.7,0.57987339]
[1680459380799,2.29878103,1800.8,1800.7,0.57987339]
[1680459381205,2.88050552,1800.8,1800.7,0.57987339]
[1680459382004,2.05350552,1800.8,1800.7,0.57987339]
[1680459382214,2.05350552,1800.8,1800.7,0.57629793]
[1680459382702,1.47178103,1800.8,1800.7,0.57629793]
[1680459383103,2.05348557,1800.8,1800.7,0.57629793]
[1680459383306,2.05348557,1800.8,1800.6,2.54587647]
[1680459383508,3.2078,1800.7,1800.6,2.54587647]
[1680459387320,3.78950454,1800.7,1800.6,2.54587647]
[1680459388119,3.2078,1800.7,1800.6,2.54587647]
[1680459388316,3.78950454,1800.7,1800.6,2.54587647]
[1680459388721,4.38831061,1800.7,1800.6,2.54587647]
[1680459389022,3.80660607,1800.7,1800.6,2.54587647]
[1680459393715,3.80660607,1800.7,1800.6,0.86949728]
[1680459394118,4.38831061,1800.7,1800.6,0.86949728]
[1680459396929,5.22131061,1800.7,1800.6,0.86949728]
[1680459403842,5.22167754,1800.7,1800.6,0.86949728]
[1680459404037,6.09486063,1800.7,1800.6,0.86949728]
[1680459404441,5.22167754,1800.7,1800.6,0.86949728]
[1680459405638,5.51278916,1800.7,1800.6,0.86949728]
[1680459405843,1.0,1800.6,1800.1,5.0995]
[1680459406047,0.58231208,1800.4,1800.3,0.87061026]
[1680459406243,5.91024032,1800.4,1800.3,0.87061026]
[1680459407536,1.0,1800.3,1800.2,0.87061026]
[1680459407734,1.833,1800.3,1800.2,0.87061026]
[1680459408350,2.41497192,1800.3,1800.2,0.87061026]
[1680459409140,1.833,1800.3,1800.1,0.87061026]
[1680459409346,3.2078,1800.2,1800.1,0.87061026]
[1680459411947,3.2078,1800.2,1800.0,0.87061026]
[1680459412252,4.0378,1800.2,1800.0,0.87061026]
[1680459413942,0.83,1800.2,1800.1,0.87061026]
[1680459414450,4.0378,1800.2,1800.1,0.87061026]
[1680459415039,3.2078,1800.2,1800.1,0.87061026]
[1680459415846,4.0378,1800.2,1800.0,0.87061026]
[1680459418855,0.98782125,1800.1,1800.0,0.87061026]
[1680459419249,4.0378,1800.2,1800.0,0.87061026]
[1680459419641,0.58197192,1800.4,1800.0,1.70361026]
[1680459419849,3.2078,1800.3,1800.1,0.87061026]
[1680459420045,3.2078,1800.3,1800.0,1.70361026]
[1680459420451,3.2078,1800.1,1800.0,0.87061026]
[1680459420654,4.8718,1800.1,1799.8,0.87061026]
[1680459420954,3.2078,1799.9,1799.8,0.87061026]
[1680459423753,3.2078,1799.9,1799.7,0.87061026]
[1680459425048,0.829,1799.8,1799.7,0.87061026]
[1680459425355,1.829,1799.8,1799.6,2.49945695]
[1680459425554,3.2078,1799.7,1799.6,2.49945695]
[1680459425853,3.2078,1799.7,1799.6,1.62884669]
[1680459426053,3.2078,1799.7,1799.5,0.87061026]
[1680459427054,3.2078,1799.7,1799.6,0.87061026]
[1680459427351,3.2078,1799.7,1799.5,0.87061026]
[1680459433649,3.2078,1799.7,1799.4,3.39219578]
[1680459433854,1.21665306,1799.6,1799.4,3.39219578]
[1680459434051,3.2078,1799.7,1799.5,0.87061026]
[1680459435060,3.2078,1799.7,1799.4,3.39219578]
[1680459438362,3.20308077,1799.7,1799.4,3.39219578]
[1680459442161,0.826,1799.6,1799.4,2.55919578]
[1680459445472,3.2078,1799.5,1799.4,2.55919578]
[1680459446167,3.2078,1799.5,1799.4,0.87061026]
[1680459446575,5.25765581,1799.5,1799.2,0.87061026]
[1680459446874,4.0408,1799.3,1799.0,1.41295491]
[1680459447064,3.2078,1799.3,1799.1,1.70261026]
[1680459448969,3.2078,1799.3,1799.2,0.87061026]
[1680459449274,4.31437045,1799.3,1799.2,0.87061026]
[1680459450470,4.31437045,1799.3,1799.1,1.70261026]
[1680459451076,0.83,1799.2,1799.1,0.87061026]
[1680459452171,4.0408,1799.3,1799.1,0.87061026]
[1680459452363,1.21066619,1799.2,1799.1,0.87061026]
[1680459452564,4.0408,1799.3,1799.1,0.87061026]
[1680459452764,1.21067431,1799.2,1799.1,0.87061026]
[1680459453574,4.0408,1799.3,1799.1,0.87061026]
[1680459453773,1.21069096,1799.2,1799.1,0.87061026]
[1680459454077,4.0408,1799.3,1799.1,0.87061026]
[1680459454280,1.21069918,1799.2,1799.1,0.87061026]
[1680459454673,3.04369918,1799.2,1799.0,0.87061026]
[1680459454878,3.2078,1799.1,1799.0,0.87061026]
[1680459455776,1.21069918,1799.2,1799.0,0.87061026]
[1680459461080,0.831,1799.1,1799.0,0.87061026]
[1680459463580,1.664,1799.1,1799.0,0.87061026]
[1680459463781,2.80756168,1799.1,1799.0,0.87061026]
[1680459464588,1.14356168,1799.1,1799.0,0.87061026]
[1680459470085,4.0408,1799.5,1799.0,1.99081368]
[1680459470388,0.63284507,1799.4,1799.1,0.87025797]
[1680459470584,0.63284507,1799.4,1799.1,1.87025797]
[1680459470884,0.63284507,1799.4,1799.1,0.87025797]
[1680459471985,4.0388,1799.3,1799.1,0.87025797]
[1680459472488,0.831,1799.3,1799.1,0.87025797]
[1680459472686,4.0388,1799.3,1799.1,0.87025797]
[1680459477690,0.8432607,1799.2,1799.1,0.87025797]
[1680459486704,0.8432607,1799.2,1799.1,0.833]
[1680459486906,0.8432607,1799.2,1799.1,2.99381368]
[1680459487102,1.41297192,1799.5,1799.1,1.99381368]
[1680459487303,0.84342102,1799.4,1799.2,0.87151389]
[1680459487710,1.42539294,1799.4,1799.2,0.87151389]
[1680459488008,0.84342102,1799.4,1799.2,0.87151389]
[1680459488511,4.05122102,1799.4,1799.2,0.87151389]
[1680459489315,4.05122102,1799.4,1799.3,0.87151389]
[1680459489726,4.63319294,1799.4,1799.3,0.87151389]
[1680459491824,5.50663326,1799.4,1799.3,1.16081368]
[1680459492029,2.29883326,1799.4,1799.3,1.16081368]
[1680459492323,1.42539294,1799.4,1799.3,1.16081368]
[1680459494027,0.84342102,1799.4,1799.3,1.44988227]
[1680459494228,0.61068155,1799.4,1799.3,1.44988227]
[1680459494727,0.61068155,1799.4,1799.3,4.0408]
[1680459494919,0.61068155,1799.4,1799.3,5.0408]
[1680459495116,0.58197192,1799.6,1799.3,17.27509952]
[1680459495316,0.58197192,1799.6,1799.5,1.16381204]
[1680459495620,4.08124032,1799.7,1799.5,1.16381204]
[1680459495621,1.45541224,1799.7,1799.5,1.16381204]
[1680459495821,1.45541224,1799.7,1799.6,0.87249694]
[1680459496222,0.87344032,1799.7,1799.6,0.87249694]
[1680459496822,0.58251437,1799.7,1799.6,2.70549694]
[1680459497024,0.58251437,1799.7,1799.6,2.99681204]
[1680459497326,0.58251437,1799.8,1799.6,1.833]
[1680459497523,0.58251437,1799.8,1799.7,0.87199119]
[1680459498025,0.58251437,1799.8,1799.7,1.0]
[1680459498230,0.58251437,1799.8,1799.7,0.87199119]
[1680459499228,0.58251437,1799.8,1799.6,2.99681204]
[1680459499229,0.58251437,1799.8,1799.6,2.70499119]
[1680459499622,0.58251437,1799.9,1799.7,0.87199119]
[1680459499821,0.58251437,1799.9,1799.7,4.07979119]
[1680459500633,0.58251437,1799.9,1799.8,0.833]
[1680459501133,0.58251437,1799.9,1799.8,1.833]
[1680459501337,0.58251437,1800.1,1799.8,1.70499119]
[1680459502128,1.41451437,1800.1,1799.8,0.87199119]
[1680459502332,1.41451437,1800.1,1799.9,0.58048665]
[1680459503327,0.832,1800.1,1799.9,0.58048665]
[1680459505234,0.832,1800.1,1799.8,0.58048665]
[1680459508936,0.29464724,1800.0,1799.8,0.58048665]
[1680459509336,0.832,1799.9,1799.6,0.58048665]
[1680459509638,1.0,1799.8,1799.6,0.58048665]
[1680459509831,1.0,1799.8,1799.5,2.28547784]
[1680459512339,1.0,1799.8,1799.5,1.41348665]
[1680459512838,1.0,1799.8,1799.5,2.28547784]
[1680459513038,1.832,1799.9,1799.5,2.28547784]
[1680459513234,0.832,1799.9,1799.5,2.28547784]
[1680459515146,0.832,1799.9,1799.5,3.97109022]
[1680459515336,0.832,1799.9,1799.6,0.58048665]
[1680459518544,1.832,1799.9,1799.6,0.58048665]
[1680459521649,0.832,1799.9,1799.6,0.58048665]
[1680459522149,0.829,1799.9,1799.6,0.58048665]
[1680459522446,1.829,1799.9,1799.6,0.58048665]
[1680459523551,0.45626783,1799.8,1799.6,0.58048665]
[1680459523943,1.829,1799.9,1799.6,0.58048665]
[1680459525646,0.829,1799.9,1799.6,0.58048665]
[1680459529154,0.829,1799.9,1799.6,1.45247784]
[1680459531045,0.829,1799.9,1799.7,0.58048665]
[1680459532056,0.829,1799.8,1799.7,0.58048665]